bitfinex-derivatives/quotes_ETHF0:USTF0_20250726
["timestamp","ask_amount","ask_price","bid_price","bid_amount"]
[1753507047258,2.13323096,3746.2,3746.1,2.49231404]
[1753507047758,2.13323096,3746.2,3746.1,3.02607404]
[1753507048561,1.441,3746.2,3746.1,3.02607404]
[1753507049160,1.441,3746.5,3746.4,2.29241]
[1753507049362,1.1563,3746.5,3746.4,3.02602404]
[1753507049862,3.2078,3746.7,3746.6,2.27479]
[1753507049863,4.3419,3746.7,3746.6,2.27479]
[1753507050250,3.9177,3746.7,3746.6,2.27479]
[1753507050662,3.2078,3746.7,3746.6,2.27479]
[1753507051364,3.2078,3746.7,3746.6,1.7411]
[1753507051563,4.45137,3746.7,3746.3,0.737]
[1753507051863,1.7491,3746.4,3746.3,12.7501]
[1753507052761,1.7491,3746.4,3746.3,13.28383]
[1753507053166,1.4413,3746.4,3746.3,2.27483]
[1753507053365,1.4413,3746.4,3746.3,13.28483]
[1753507053964,1.4413,3746.4,3746.3,13.28183]
[1753507054658,0.4242,3746.4,3746.3,13.28183]
[1753507054858,0.2057,3746.5,3746.4,0.9347]
[1753507055060,0.2057,3746.5,3746.4,2.2748]
[1753507055261,1.1341,3746.5,3746.4,2.2748]
[1753507055463,1.4413,3746.5,3746.4,2.2748]
[1753507056062,1.1341,3746.5,3746.4,2.2748]
[1753507056261,0.00643305,3746.9,3746.7,0.7034]
[1753507056464,0.00643305,3746.9,3746.8,3.80677749]
[1753507059570,0.63633305,3746.9,3746.8,3.80677749]
[1753507059863,1.44773305,3746.9,3746.8,3.80677749]
[1753507060459,1.14053305,3746.9,3746.8,3.80677749]
[1753507060769,0.00643305,3746.9,3746.8,3.80677749]
[1753507065061,0.63633305,3746.9,3746.8,3.80677749]
[1753507065263,1.44773305,3746.9,3746.8,14.80077749]
[1753507065462,1.75553305,3746.9,3746.8,14.80077749]
[1753507065666,1.44773305,3746.9,3746.8,14.80077749]
[1753507066565,0.00643305,3746.9,3746.8,14.80077749]
[1753507070072,0.018,3747.3,3746.8,14.80077749]
[1753507070073,0.018,3747.3,3747.2,1.237]
[1753507070272,0.018,3747.3,3747.2,7.01451749]
[1753507070569,0.2237,3747.3,3747.2,7.01451749]
[1753507070766,0.9551,3747.3,3747.2,7.01451749]
[1753507071164,1.4593,3747.3,3747.2,7.01451749]
[1753507071671,0.018,3747.3,3747.2,7.01451749]
[1753507072066,0.4422,3747.3,3747.2,7.01451749]
[1753507072370,0.6479,3747.3,3747.2,7.01451749]
[1753507072565,1.4593,3747.3,3747.2,7.01451749]
[1753507072768,1.4593,3747.3,3747.2,6.21147754]
[1753507077673,0.018,3747.3,3747.2,6.21147754]
[1753507078574,1.4593,3747.3,3747.2,6.21147754]
[1753507083675,1.7642,3747.3,3747.2,6.21147754]
[1753507084670,1.4593,3747.3,3747.2,6.21147754]
[1753507086576,1.4593,3747.3,3747.2,3.00367754]
[1753507087980,1.7642,3747.3,3747.2,3.00367754]
[1753507088876,1.4593,3747.3,3747.2,3.00367754]
[1753507090982,1.7642,3747.3,3746.5,2.39783232]
[1753507091181,0.72897754,3746.6,3746.2,2.05453232]
[1753507091379,0.72897754,3746.6,3745.6,0.3128]
[1753507091380,3.2078,3746.3,3746.0,0.7977]
[1753507091580,3.2078,3746.3,3746.2,0.3128]
[1753507092181,3.74153,3746.3,3746.2,0.3128]
[1753507092580,3.74153,3746.3,3745.9,0.3128]
[1753507092581,0.53375,3746.2,3745.9,0.3128]
[1753507092785,0.53375,3746.2,3745.9,0.2977]
[1753507093086,0.53375,3746.2,3746.1,0.3128]
[1753507093892,3.74154,3746.3,3746.1,0.3128]
[1753507094185,0.53374,3746.2,3746.1,0.3128]
[1753507094785,3.74154,3746.3,3746.1,0.3128]
[1753507095285,0.53374,3746.2,3746.1,0.3128]
[1753507096385,1.24282407,3746.2,3746.1,0.3128]
[1753507097381,0.53374,3746.2,3746.1,0.3128]
[1753507099386,0.53374,3746.2,3746.1,0.6105]
[1753507103286,0.53374,3746.2,3746.1,1.2744]
[1753507103481,0.53374,3746.2,3746.1,1.7774]
[1753507104789,3.2078,3746.3,3746.1,1.7774]
[1753507104991,3.74154,3746.3,3746.2,1.7774]
[1753507105180,3.74153,3746.3,3746.2,1.7774]
[1753507111300,3.74243,3746.3,3746.2,1.7774]
[1753507116597,4.49231203,3746.3,3746.2,1.7774]
[1753507116996,8.61668203,3746.3,3745.0,0.5837]
[1753507117200,8.61668203,3746.3,3745.7,1.7605]
[1753507117201,3.7416,3745.8,3745.7,1.7605]
[1753507117400,3.2078,3745.8,3745.7,1.7605]
[1753507117600,3.7416,3745.8,3745.7,1.7605]
[1753507118504,3.7425,3745.8,3745.7,1.7605]
[1753507119405,3.2087,3745.8,3745.7,1.7605]
[1753507119606,3.7425,3745.8,3745.7,1.7605]
[1753507120503,4.49406063,3745.8,3745.7,1.7605]
[1753507121402,3.96026063,3745.8,3745.7,1.7605]
[1753507121602,4.49406063,3745.8,3745.7,1.7605]
[1753507123599,1.28626063,3745.8,3745.7,1.7605]
[1753507123808,4.49406063,3745.8,3745.7,1.7605]
[1753507124303,3.96026063,3745.8,3745.7,1.7605]
[1753507124510,3.95936063,3745.8,3745.7,2.29431]
[1753507128210,3.96075422,3745.8,3745.7,2.29431]
[1753507132710,3.2078,3745.8,3745.7,2.29431]
[1753507132910,3.96162901,3745.8,3745.7,2.29431]
[1753507133512,3.96072901,3745.8,3745.7,2.29431]
[1753507133713,0.75292901,3745.8,3745.7,2.29431]
[1753507133908,0.75292901,3745.8,3745.6,11.81197754]
[1753507133909,3.2087,3746.0,3745.9,1.24987]
[1753507134110,3.96160588,3746.0,3745.9,2.29427]
[1753507135216,3.96160588,3746.0,3745.9,1.7605]
[1753507135414,3.96160588,3746.0,3745.9,2.29429]
[1753507135609,3.96160588,3746.0,3745.9,0.5837]
[1753507135813,3.96160588,3746.0,3745.9,1.11749]
[1753507136013,3.96160588,3746.0,3745.3,11.99657754]
[1753507136319,3.96160588,3746.0,3745.4,2.29436]
[1753507136320,0.0009,3745.5,3745.4,2.29436]
[1753507137820,3.2087,3745.5,3745.4,2.29436]
[1753507139315,3.2078,3745.5,3745.4,2.29436]
[1753507141516,3.2078,3745.5,3745.4,1.7605]
[1753507142418,3.2078,3745.5,3745.4,2.29436]
[1753507143328,3.95992288,3745.5,3745.4,2.29436]
[1753507143621,3.2078,3745.5,3745.4,2.29436]
[1753507144120,3.95990202,3745.5,3745.4,2.29436]
[1753507146018,3.95990202,3745.5,3745.1,0.2969]
[1753507146223,0.75206242,3745.4,3745.1,0.82069]
[1753507146423,0.53386,3745.4,3745.2,0.2868]
[1753507146720,0.53386,3745.4,3745.3,0.2969]
[1753507146923,1.28594782,3745.4,3745.3,0.2969]
[1753507150225,1.28594782,3745.4,3745.3,0.5837]
[1753507151726,0.53389,3745.2,3745.1,0.2969]
[1753507152118,0.75143601,3745.2,3745.1,0.8207]
[1753507152320,0.75143601,3745.2,3745.1,1.1176]
[1753507153327,0.75143601,3745.2,3745.1,1.7544]
[1753507153734,5.75143601,3745.2,3744.7,1.7225]
[1753507154031,3.2078,3744.8,3744.7,2.25646]
[1753507154232,3.95880173,3744.8,3744.7,1.7225]
[1753507154532,4.49274173,3744.8,3744.7,1.7225]
[1753507154734,4.49236791,3744.8,3744.7,1.2945]
[1753507155130,4.49236791,3744.8,3744.7,0.5837]
[1753507155831,9.49236791,3744.8,3744.7,0.2969]
[1753507156430,4.49236791,3744.8,3744.7,0.2969]
[1753507157232,0.534,3744.4,3744.3,0.2868]
[1753507157433,3.7418,3744.4,3744.3,0.7925]
[1753507158638,3.7418,3744.4,3744.3,0.5837]
[1753507158835,3.7418,3744.4,3744.3,0.2969]
[1753507159034,0.53407,3743.9,3743.8,1.33645749]
[1753507159338,3.74187,3743.9,3743.8,1.33645749]
[1753507159640,3.74187,3743.9,3743.8,1.92015749]
[1753507163636,3.2078,3743.9,3743.8,2.45424749]
[1753507164330,3.74187,3743.9,3743.8,2.45424749]
[1753507164535,3.74187,3743.9,3743.8,1.92015749]
[1753507166743,3.2078,3743.9,3743.8,1.92015749]
[1753507168552,3.74187,3743.9,3743.8,1.92015749]
[1753507168747,3.2078,3743.9,3743.8,1.92015749]
[1753507169852,3.2078,3743.9,3743.8,2.45424749]
[1753507170048,3.6604,3744.3,3743.8,1.92015749]
[1753507170251,3.2078,3744.3,3744.2,1.7338]
[1753507170446,3.5081,3744.3,3744.2,1.7338]
[1753507170648,4.6348,3744.3,3744.2,1.7338]
[1753507170848,4.6348,3744.3,3744.2,2.26783]
[1753507171448,4.6348,3744.3,3744.2,1.7338]
[1753507171953,4.9195,3744.3,3744.2,1.7338]
[1753507172143,3.9607,3744.3,3744.2,2.26783]
[1753507172450,3.2078,3744.3,3744.2,2.99680754]
[1753507173451,3.6604,3744.3,3744.2,2.26783]
[1753507173750,0.9463,3744.3,3744.2,2.26783]
[1753507173954,0.7529,3744.3,3744.2,2.26783]
[1753507175447,1.427,3744.3,3744.2,1.7338]
[1753507175648,2.17404945,3744.3,3744.2,2.26783]
[1753507175848,1.427,3744.3,3744.2,2.26783]
[1753507176243,2.17426318,3744.3,3744.2,2.26783]
[1753507176549,1.427,3744.3,3744.2,2.26783]
[1753507177958,1.427,3744.3,3744.2,1.7338]
[1753507178251,1.427,3744.3,3744.2,2.26783]
[1753507178453,1.427,3744.3,3744.2,1.7338]
[1753507178648,1.427,3744.3,3744.2,2.26783]
[1753507181454,2.17561887,3744.3,3744.2,2.26783]
[1753507181860,1.427,3744.3,3744.2,2.26783]
[1753507182354,2.17594567,3744.3,3744.2,2.26783]
[1753507182557,1.427,3744.3,3744.2,2.26783]
[1753507182752,2.17593763,3744.3,3744.2,2.26783]
[1753507183057,1.427,3744.3,3744.2,2.26783]
[1753507183250,2.1759704,3744.3,3744.2,2.26783]
[1753507184554,2.17656709,3744.3,3744.2,2.26783]
[1753507186645,1.50246709,3744.3,3744.2,2.26783]
[1753507186850,0.74956709,3744.3,3744.2,2.26783]
[1753507187753,1.20216709,3744.3,3744.2,2.26783]
[1753507188653,0.74956709,3744.3,3744.2,2.26783]
[1753507189551,3.6604,3744.9,3744.8,2.26774]
[1753507189759,4.41016765,3744.9,3744.8,2.26774]
[1753507190260,4.71046765,3744.9,3744.8,2.26774]
[1753507190961,0.74976765,3744.9,3744.8,2.26774]
[1753507191661,0.9463,3745.2,3745.1,1.2189]
[1753507191959,2.17669971,3745.2,3745.1,2.2677]
[1753507195968,1.427,3745.2,3745.1,2.2677]
[1753507196369,0.7529,3745.2,3745.1,2.2677]
[1753507198064,0.3003,3745.2,3745.1,2.2677]
[1753507198270,1.0354,3745.4,3745.3,2.26767]
[1753507200180,1.427,3745.4,3745.3,2.26767]
[1753507201576,1.7217,3745.4,3745.3,1.7338]
[1753507201772,2.46944997,3745.4,3745.3,2.26767]
[1753507201980,1.7217,3745.4,3745.3,2.26767]
[1753507202879,4.9295,3745.4,3745.3,2.26767]
[1753507203085,4.9295,3745.4,3745.3,0.7895]
[1753507203278,4.9295,3745.4,3745.3,1.32337]
[1753507204578,4.9295,3745.4,3745.3,0.5904]
[1753507204783,4.9295,3745.4,3745.3,0.284]
[1753507204983,4.9295,3745.4,3745.3,0.81787]
[1753507206982,4.9295,3745.4,3745.3,1.31457]
[1753507207184,4.9295,3745.4,3745.3,1.51537]
[1753507207380,4.9295,3745.4,3745.3,1.95187]
[1753507207878,3.6604,3745.4,3745.3,2.23627]
[1753507208485,3.9636,3745.4,3745.3,2.23627]
[1753507210083,3.511,3745.4,3745.3,2.23627]
[1753507210482,3.9722,3745.4,3745.3,2.23627]
[1753507210882,4.2583,3745.4,3745.3,2.23627]
[1753507212891,4.4557,3745.4,3745.3,2.23627]
[1753507215287,4.644,3745.4,3745.3,2.23627]
[1753507221392,4.9387,3745.4,3745.3,2.23627]
[1753507222400,4.9387,3745.4,3745.3,13.21827]
[1753507224201,5.68782536,3745.4,3745.3,13.21827]
[1753507224990,5.68782536,3745.4,3745.3,12.49737]
[1753507226099,5.68782536,3745.4,3745.3,12.93387]
[1753507230204,5.68782536,3745.4,3745.3,13.21827]
[1753507232305,5.68782536,3745.4,3745.3,2.23627]
[1753507232506,5.68782536,3745.4,3745.3,13.21727]
[1753507236902,5.68782536,3745.4,3745.0,0.4365]
[1753507237109,0.7016,3744.9,3744.8,1.23084]
[1753507237301,1.7299,3744.9,3744.8,12.21084]
[1753507237499,1.7299,3744.9,3744.8,12.64734]
[1753507237701,1.7299,3744.9,3744.8,13.24694]
[1753507238310,1.7299,3744.9,3744.8,2.26694]
[1753507238509,1.7299,3744.9,3744.8,13.24694]
[1753507238704,1.4188,3744.9,3744.8,13.24694]
[1753507244314,1.4188,3744.9,3744.8,2.26694]
[1753507244500,1.4188,3744.9,3744.8,13.24794]
[1753507249513,1.4188,3744.9,3744.8,13.24694]
[1753507250223,1.7299,3744.9,3744.8,13.24694]
[1753507254418,1.7299,3744.9,3744.8,2.26694]
[1753507254615,1.7299,3744.9,3744.8,13.24694]
[1753507257321,1.7299,3744.9,3744.8,2.26694]
[1753507257619,1.7299,3744.9,3744.8,13.24694]
[1753507259215,1.4188,3744.9,3744.8,13.24694]
[1753507262930,1.4188,3744.9,3744.8,2.26694]
[1753507263130,1.4188,3744.9,3744.8,13.24594]
[1753507267630,0.4273,3746.0,3745.7,1.0069]
[1753507267837,4.2239,3746.6,3746.5,1.6636]
[1753507268140,4.49482465,3746.6,3746.5,2.82333894]
[1753507269344,3.5205,3746.6,3746.5,2.82333894]
[1753507269537,3.2078,3746.6,3746.5,2.82333894]
[1753507269833,0.018,3747.3,3747.2,1.0069]
[1753507270035,0.018,3747.3,3747.2,2.82323894]
[1753507270430,3.6351,3747.8,3747.2,2.82323894]
[1753507270644,3.6351,3747.8,3747.7,2.82316894]
[1753507270940,3.9478,3747.8,3747.7,2.27553]
[1753507271129,0.2,3747.9,3747.8,1.23361]
[1753507271332,0.2,3747.9,3747.8,2.27551]
[1753507273541,0.6273,3747.9,3747.8,2.27551]
[1753507273937,0.94,3747.9,3747.8,2.27551]
[1753507274939,0.94,3747.9,3747.8,1.742]
[1753507275337,1.1485,3747.9,3747.8,1.742]
[1753507275531,1.6434,3747.9,3747.8,1.742]
[1753507276043,1.6434,3747.9,3747.8,2.27551]
[1753507276545,1.6434,3747.9,3747.8,1.742]
[1753507277347,1.6434,3747.9,3747.8,2.27551]
[1753507279439,0.2,3747.9,3747.8,2.27551]
[1753507280144,0.6273,3747.9,3747.8,2.27551]
[1753507280345,0.94,3747.9,3747.8,2.27551]
[1753507281235,0.2,3747.9,3747.8,2.27551]
[1753507282545,0.94,3747.9,3747.8,2.27551]
[1753507282947,1.1485,3747.9,3747.8,2.27551]
[1753507283147,1.45,3747.9,3747.8,2.27551]
[1753507283336,1.6434,3747.9,3747.8,2.27551]
[1753507284042,1.1485,3747.9,3747.8,2.27551]
[1753507284241,1.3419,3747.9,3747.8,2.27551]
[1753507284936,0.94,3747.9,3747.8,2.27551]
[1753507286347,1.1485,3747.9,3747.8,2.27551]
[1753507286545,1.45,3747.9,3747.8,2.27551]
[1753507286849,1.1485,3747.9,3747.8,2.27551]
[1753507287344,1.45,3747.9,3747.8,2.27551]
[1753507288451,1.6434,3747.9,3747.8,2.27551]
[1753507288659,1.9453,3747.9,3747.8,1.0021]
[1753507288851,0.7146,3747.7,3747.6,0.84034]
[1753507289150,1.7453,3747.7,3747.6,1.96544]
[1753507290041,1.7453,3747.7,3747.6,2.27554]
[1753507290248,1.4434,3747.7,3747.6,2.27554]
[1753507290741,1.7422,3747.7,3747.6,2.27554]
[1753507290946,0.4033,3747.5,3747.3,3.5192]
[1753507291149,1.7404,3747.5,3747.4,0.2861]
[1753507291346,1.4416,3747.5,3747.3,4.05278]
[1753507291551,0.7441,3747.4,3747.2,0.2861]
[1753507291857,0.6945,3746.9,3746.8,0.81976]
[1753507292057,1.7404,3746.9,3746.8,0.81976]
[1753507292259,1.7404,3746.9,3746.8,1.13116]
[1753507292753,1.7404,3746.9,3746.8,1.32166]
[1753507293349,1.7404,3746.9,3746.8,0.788]
[1753507293563,0.6945,3746.7,3746.6,0.92488]
[1753507293753,1.7404,3746.7,3746.6,1.37408]
[1753507294152,1.7404,3746.7,3746.6,2.27798]
[1753507294549,1.4416,3746.7,3746.6,2.27798]
[1753507295756,1.4416,3746.7,3746.6,1.7443]
[1753507296450,1.7404,3746.7,3746.6,1.7443]
[1753507296653,2.27407,3746.7,3746.6,0.2861]
[1753507297854,1.7404,3746.7,3746.6,0.2861]
[1753507298156,1.4416,3746.7,3746.6,2.27799]
[1753507299356,1.4416,3746.7,3746.6,1.7443]
[1753507299549,1.7404,3746.7,3746.6,1.7443]
[1753507299751,1.7404,3746.7,3746.6,4.9521]
[1753507303461,2.27407,3746.7,3746.6,4.9521]
[1753507304166,2.27407,3746.7,3746.6,1.7443]
[1753507304552,1.7404,3746.7,3746.6,1.7443]
[1753507305258,2.27407,3746.7,3746.6,1.7443]
[1753507306567,1.7404,3746.7,3746.6,1.7443]
[1753507307159,2.27407,3746.7,3746.6,1.7443]
[1753507315870,0.6945,3746.5,3746.4,0.81981]
[1753507316070,1.7404,3746.5,3746.4,2.27801]
[1753507316575,1.4416,3746.5,3746.4,2.27801]
[1753507318275,1.4416,3746.5,3746.4,1.7443]
[1753507318476,1.4416,3746.5,3746.4,2.27801]
[1753507319377,0.3018,3746.8,3746.4,2.27801]
[1753507319579,0.7365,3746.6,3746.5,1.7443]
[1753507320779,0.7365,3746.6,3746.5,2.278]
[1753507320972,0.7365,3746.6,3746.5,1.7443]
[1753507322175,0.7365,3746.6,3746.2,3.2078]
[1753507322176,0.4596,3746.9,3746.8,1.6961]
[1753507322381,1.52089858,3746.9,3746.8,1.6961]
[1753507322680,1.81589858,3746.9,3746.8,2.22976]
[1753507322875,2.22139858,3746.9,3746.8,2.22976]
[1753507334186,1.4734,3746.9,3746.8,2.22976]
[1753507334392,2.22234231,3746.9,3746.8,2.22976]
[1753507337399,1.71874231,3746.9,3746.8,2.22976]
[1753507337598,1.52184231,3746.9,3746.8,2.22976]
[1753507338897,1.81684231,3746.9,3746.8,2.22976]
[1753507339396,1.52184231,3746.9,3746.8,2.22976]
[1753507339797,1.71874231,3746.9,3746.8,2.22976]
[1753507339997,2.22234231,3746.9,3746.8,2.22976]
[1753507347793,1.52184231,3746.9,3746.8,2.22976]
[1753507348199,2.01374231,3746.9,3746.8,2.22976]
[1753507350307,2.22234231,3746.9,3746.8,2.22976]
[1753507351906,2.00139231,3746.9,3746.6,0.3051]
[1753507352105,1.73,3746.7,3746.6,0.83878]
[1753507352301,2.47894231,3746.7,3746.6,1.12298]
[1753507353509,2.47894231,3746.7,3746.6,1.53698]
[1753507353703,1.73,3746.7,3746.6,2.00248]
[1753507353908,1.73,3746.7,3746.6,2.29238]
[1753507355710,2.47941432,3746.7,3746.6,2.29238]
[1753507357212,1.73,3746.7,3746.6,5.50018]
[1753507357813,2.47965136,3746.7,3746.6,2.29238]
[1753507358012,1.73,3746.7,3746.6,2.29238]
[1753507358213,1.4368,3746.7,3746.6,2.29238]
[1753507359012,2.18646627,3746.7,3746.6,2.29238]
[1753507359413,1.4368,3746.7,3746.6,2.29238]
[1753507359911,0.7431,3746.7,3746.6,2.29238]
[1753507360118,0.9975,3747.0,3746.9,1.23754]
[1753507360317,1.74721191,3747.0,3746.9,2.29234]
[1753507360812,2.18651191,3747.0,3746.9,2.29234]
[1753507363417,2.47971191,3747.0,3746.9,2.29234]
[1753507365824,2.18651191,3747.0,3746.9,2.29234]
[1753507374324,2.47971191,3747.0,3746.9,2.29234]
[1753507380332,2.18651191,3747.0,3746.9,2.29234]
[1753507380631,1.05351191,3747.0,3746.9,3.02133636]
[1753507380838,0.74971191,3747.0,3746.9,3.02133636]
[1753507383837,0.74971191,3747.0,3746.9,8.02133636]
[1753507384434,0.4391,3747.5,3747.4,1.21037]
[1753507384631,0.7469,3747.6,3747.5,0.6291]
[1753507384830,0.5062,3747.6,3747.5,1.4008]
[1753507385031,1.76801795,3747.6,3747.5,1.4008]
[1753507385231,1.76801795,3747.6,3747.5,1.695]
[1753507385431,2.20711795,3747.6,3747.5,2.22856]
[1753507387939,0.75031795,3747.6,3747.5,2.22856]
[1753507388132,0.6391,3747.9,3747.7,0.6768]
[1753507388340,0.9469,3747.9,3747.8,2.95751636]
[1753507388533,1.6968155,3747.9,3747.8,2.95751636]
[1753507388838,0.9499155,3747.9,3747.8,2.95751636]
[1753507390004,0.9499155,3747.9,3747.8,3.17165349]
[1753507390157,0.4391,3748.4,3748.3,0.53344]
[1753507390336,0.4391,3748.4,3748.3,2.22844]
[1753507390337,1.49620202,3748.4,3748.3,2.22844]
[1753507390636,1.99780202,3748.4,3748.3,2.22844]
[1753507390836,2.20610202,3748.4,3748.3,2.22844]
[1753507391635,1.4568,3748.4,3748.3,2.22844]
[1753507392639,1.7551,3748.4,3748.3,1.51614]
[1753507393235,1.7551,3748.4,3748.3,1.94474]
[1753507393430,1.7551,3748.4,3748.3,0.7901]
[1753507393637,1.7551,3748.4,3748.3,0.53344]
[1753507393941,1.7551,3748.4,3748.3,0.82764]
[1753507394143,1.7551,3748.4,3748.3,1.32354]
[1753507394443,1.7551,3748.4,3748.3,0.7901]
[1753507396043,1.7551,3748.4,3748.3,1.32354]
[1753507396236,1.7551,3748.4,3748.3,1.51614]
[1753507396541,1.7551,3748.4,3748.3,1.94474]
[1753507401648,1.4568,3748.4,3748.3,2.22844]
[1753507401936,1.1536,3748.4,3748.3,2.22844]
[1753507402143,0.7469,3748.4,3748.3,2.22844]
[1753507404039,1.0501,3748.4,3748.3,2.22844]
[1753507404239,1.2485,3748.4,3748.3,2.22844]
[1753507404440,1.4568,3748.4,3748.3,2.22844]
[1753507405548,1.4568,3748.4,3748.3,5.43624]
[1753507413049,1.7601,3748.4,3748.3,3.2078]
[1753507413247,1.7601,3748.4,3748.3,11.48644]
[1753507413641,1.7601,3748.4,3748.3,11.77784]
[1753507414352,1.7601,3748.4,3748.3,12.27804]
[1753507414553,1.7601,3748.4,3748.3,12.94024]
[1753507414742,1.7601,3748.4,3748.3,1.98724]
[1753507416147,2.50964988,3748.4,3748.3,1.98724]
[1753507416347,1.7601,3748.4,3748.3,1.98724]
[1753507416742,2.50964869,3748.4,3748.3,1.98724]
[1753507416942,1.7601,3748.4,3748.3,1.98724]
[1753507417145,2.50994832,3748.4,3748.3,1.98724]
[1753507422651,3.04337832,3748.4,3748.3,1.4538]
[1753507423051,3.04337832,3748.4,3748.3,0.9897]
[1753507423253,2.50994832,3748.4,3748.3,0.9897]
[1753507423853,3.04337832,3748.4,3748.3,0.9897]
[1753507425055,3.04337832,3748.4,3748.3,1.4538]
[1753507425554,3.04337832,3748.4,3748.3,0.9897]
[1753507429967,3.04337832,3748.4,3748.3,1.4538]
[1753507430672,2.50994832,3748.4,3748.3,1.7602]
[1753507430963,2.20664832,3748.4,3748.3,2.84026715]
[1753507431671,2.20664832,3748.4,3748.3,2.30682715]
[1753507432572,1.18564832,3748.4,3748.3,2.84026715]
[1753507432871,1.48864832,3748.4,3748.3,2.84026715]
[1753507434673,1.68954832,3748.4,3748.3,2.84026715]
[1753507434973,1.68954832,3748.4,3748.3,2.29364]
[1753507435174,2.17634832,3748.4,3748.3,2.29364]
[1753507441775,1.48864832,3748.4,3748.3,2.29364]
[1753507442878,0.74984832,3748.4,3748.3,2.29364]
[1753507444170,1.45104832,3748.4,3748.3,2.29364]
[1753507444376,2.53194832,3748.4,3748.3,2.29364]
[1753507445777,2.53194832,3748.4,3748.3,0.9897]
[1753507445976,2.53194832,3748.4,3748.3,1.32504]
[1753507446678,2.53194832,3748.4,3748.3,1.53064]
[1753507446880,2.53194832,3748.4,3748.3,1.95804]
[1753507447273,2.22104832,3748.4,3748.3,2.24344]
[1753507450984,2.53194832,3748.4,3748.3,2.24344]
[1753507454084,1.51834832,3748.4,3748.3,2.9722253]
[1753507454288,2.02194832,3748.4,3748.3,2.9722253]
[1753507454487,2.22104832,3748.4,3748.3,2.9722253]
[1753507458792,1.72054832,3748.4,3748.3,2.9722253]
[1753507459092,2.53194832,3748.4,3748.3,1.53064]
[1753507459392,2.53194832,3748.4,3748.3,1.95804]
[1753507459595,2.53194832,3748.4,3748.3,1.4246]
[1753507459795,2.53194832,3748.4,3748.3,1.95804]
[1753507460094,2.53194832,3748.4,3748.3,2.24344]
[1753507460598,2.53194832,3748.4,3748.3,1.71]
[1753507460798,2.53194832,3748.4,3748.3,2.24344]
[1753507462992,2.22104832,3748.4,3748.3,2.9722253]
[1753507463194,2.22104832,3748.4,3748.3,2.4387853]
[1753507463598,2.53194832,3748.4,3748.3,1.71]
[1753507464500,2.53194832,3748.4,3748.3,2.24344]
[1753507464998,2.53194832,3748.4,3748.3,1.71]
[1753507468905,2.22104832,3748.4,3748.3,2.79004015]
[1753507469104,2.22104832,3748.4,3748.3,2.25660015]
[1753507469806,3.06367832,3748.4,3748.3,2.25660015]
[1753507469998,2.53024832,3748.4,3748.3,2.25660015]
[1753507471205,3.06367832,3748.4,3748.3,2.25660015]
[1753507471405,2.53024832,3748.4,3748.3,2.25660015]
[1753507471706,3.06367832,3748.4,3748.3,2.25660015]
[1753507472505,2.53024832,3748.4,3748.3,2.25660015]
[1753507474407,2.53024832,3748.4,3748.3,2.79004015]
[1753507475206,2.22104832,3748.4,3748.3,2.79004015]
[1753507475608,2.22104832,3748.4,3748.3,2.25660015]
[1753507475902,2.75447832,3748.4,3748.3,2.25660015]
[1753507476108,2.53024832,3748.4,3748.3,1.13670015]
[1753507476310,2.53024832,3748.4,3748.3,1.52860015]
[1753507476507,2.53024832,3748.4,3748.3,0.982]
[1753507477109,2.53024832,3748.4,3748.3,1.96174]
[1753507477405,2.53024832,3748.4,3748.3,1.4283]
[1753507477606,2.22104832,3748.4,3748.3,1.7305]
[1753507477911,2.22104832,3748.4,3748.3,2.26394]
[1753507478111,2.22104832,3748.4,3748.3,1.7305]
[1753507478409,3.06367832,3748.4,3748.3,1.7305]
[1753507479206,3.06367832,3748.4,3748.3,0.2914]
[1753507479411,2.28357,3748.1,3748.0,0.3001]
[1753507479604,3.03341832,3748.1,3748.0,0.3001]
[1753507479804,3.03341832,3748.1,3748.0,0.5983]
[1753507481006,1.97439,3748.0,3747.9,0.5983]
[1753507481205,3.03343832,3748.0,3747.9,0.2982]
[1753507483910,1.97442,3747.8,3747.7,0.2982]
[1753507484114,3.03346832,3747.8,3747.7,0.2982]
[1753507484813,3.03346832,3747.8,3747.7,0.5983]
[1753507485206,3.03346832,3747.8,3747.7,1.7387]
[1753507485407,2.72426832,3747.8,3747.7,1.7387]
[1753507486810,3.03346832,3747.8,3747.7,1.7387]
[1753507488818,2.72426832,3747.8,3747.7,1.7387]
[1753507489515,3.03346832,3747.8,3747.7,0.9902]
[1753507491120,3.03346832,3747.8,3747.7,0.7882]
[1753507491412,3.03346832,3747.8,3747.7,0.5983]
[1753507492219,3.03346832,3747.8,3747.7,0.7882]
[1753507492406,3.03350526,3747.8,3747.7,0.9902]
[1753507493223,2.72430526,3747.8,3747.7,1.7387]
[1753507495412,0.74988526,3747.8,3747.7,3.00134582]
[1753507497323,1.18478526,3747.8,3747.7,3.00134582]
[1753507498513,0.74988526,3747.8,3747.7,3.00134582]
[1753507499211,0.4349,3748.4,3748.3,0.3919]
[1753507499522,1.47465282,3748.4,3748.3,1.7387]
[1753507500023,1.47465282,3748.4,3748.3,2.27214]
[1753507500418,1.47465282,3748.4,3748.3,1.7387]
[1753507500620,2.70478282,3748.4,3748.3,1.7387]
[1753507501323,3.00428282,3748.4,3748.3,1.7387]
[1753507502924,2.47085282,3748.4,3748.3,1.7387]
[1753507503124,2.47085282,3748.4,3748.3,2.27214]
[1753507503725,2.17135282,3748.4,3748.3,2.27214]
[1753507505823,1.47465282,3748.4,3748.3,2.27214]
[1753507506021,0.74985282,3748.4,3748.3,2.27214]
[1753507506329,1.96385282,3748.4,3748.3,1.7387]
[1753507506827,1.96385282,3748.4,3748.3,2.27214]
[1753507508826,1.67535282,3748.4,3748.3,2.27214]
[1753507509127,1.47765282,3748.4,3748.3,2.27214]
[1753507509422,0.74985282,3748.4,3748.3,2.27214]
[1753507510521,0.2964,3748.6,3748.5,1.21951]
[1753507510723,0.2964,3748.6,3748.5,2.97092582]